fUSD/lending_fUSD_20250716
["ID","MTS","AMOUNT","RATE_DAILY","PERIOD"]
[372466279,1752654657512,-4984.82,0.00021917,2]
[372466280,1752654657524,-4138.32,0.00021917,2]
[372466281,1752654657533,-3606.96,0.00021917,2]
[372466282,1752654657542,-701.99,0.00021917,2]
[372466283,1752654657552,-2573.17,0.00021917,2]
[372466284,1752654657561,-460.0,0.00021917,2]
[372466285,1752654657570,-460.0,0.00021917,2]
[372466286,1752654657579,-617.92,0.00021917,2]
[372466287,1752654657589,-1143.75,0.00021917,2]
[372466288,1752654657599,-460.0,0.00021917,2]
[372466289,1752654657608,-460.0,0.00021917,2]
[372466290,1752654657619,-619.84,0.00021917,2]
[372466291,1752654657628,-500.0,0.00021917,2]
[372466292,1752654657638,-500.0,0.00021917,2]
[372466293,1752654657650,-462.35952837,0.00021917,2]
[372466294,1752654657661,-500.0,0.00021917,2]
[372466295,1752654657671,-500.0,0.00021917,2]
[372466296,1752654657680,-500.0,0.00021917,2]
[372466297,1752654657690,-500.0,0.00021917,2]
[372466298,1752654657703,-500.0,0.00021917,2]
[372466299,1752654657712,-460.0,0.00021917,2]
[372466300,1752654657722,-869.31,0.00021917,2]
[372466301,1752654657732,-500.0,0.00021917,2]
[372466302,1752654657741,-500.0,0.00021917,2]
[372466303,1752654657750,-500.0,0.00021917,2]
[372466304,1752654657760,-460.0,0.00021917,2]
[372466305,1752654657769,-500.0,0.00021917,2]
[372466306,1752654657779,-17654.0,0.00021917,2]
[372466307,1752654657788,-500.0,0.00021917,2]
[372466308,1752654657798,-2916.59,0.00021917,2]
[372466309,1752654657807,-500.0,0.00021917,2]
[372466310,1752654657816,-466.66,0.00021917,2]
[372466311,1752654657825,-500.0,0.00021917,2]
[372466312,1752654657835,-2139.4,0.00021917,2]
[372466313,1752654657844,-460.0,0.00021917,2]
[372466314,1752654657854,-6659.42,0.00021917,2]
[372466315,1752654657864,-500.0,0.00021917,2]
[372466316,1752654657874,-151.0,0.00021917,2]
[372466317,1752654657884,-500.0,0.00021917,2]
[372466318,1752654657894,-500.0,0.00021917,2]
[372466319,1752654657904,-154.332738,0.00021917,2]
[372466320,1752654657913,-500.0,0.00021917,2]
[372466321,1752654657923,-500.0,0.00021917,2]
[372466322,1752654657932,-462.39797071,0.00021917,2]
[372466323,1752654657942,-500.0,0.00021917,2]
[372466324,1752654657952,-460.0,0.00021917,2]
[372466325,1752654657962,-500.0,0.00021917,2]
[372466326,1752654657972,-500.0,0.00021917,2]
[372466327,1752654657982,-25107.08,0.00021917,2]
[372466328,1752654657991,-460.0,0.00021917,2]
[372466329,1752654658000,-4297.16,0.00021917,2]
[372466330,1752654658010,-460.0,0.00021917,2]
[372466331,1752654658019,-460.0,0.00021917,2]
[372466332,1752654658028,-1406.86,0.00021917,2]
[372466333,1752654658038,-460.0,0.00021917,2]
[372466334,1752654658048,-460.0,0.00021917,2]
[372466335,1752654658057,-17700.65,0.00021917,2]
[372466336,1752654658067,-466.12448087,0.00021917,2]
[372466337,1752654658076,-460.0,0.00021917,2]
[372466338,1752654658087,-1626.98,0.00021917,2]
[372466339,1752654658097,-460.0,0.00021917,2]
[372466340,1752654658107,-151.0,0.00021917,2]
[372466341,1752654658117,-3389.39,0.00021917,2]
[372466342,1752654658126,-460.0,0.00021917,2]
[372466343,1752654658135,-151.0,0.00021917,2]
[372466344,1752654658145,-151.0,0.00021917,2]
[372466345,1752654658154,-151.0,0.00021917,2]
[372466346,1752654658164,-2526.02,0.00021917,2]
[372466347,1752654658173,-460.0,0.00021917,2]
[372466348,1752654658182,-153.776333,0.00021917,2]
[372466349,1752654658192,-460.0,0.00021917,2]
[372466350,1752654658201,-541.67,0.00021917,2]
[372466351,1752654658211,-460.78601271,0.00021917,2]
[372466352,1752654658220,-460.0,0.00021917,2]
[372466353,1752654658229,-5421.01,0.00021917,2]
[372466354,1752654658239,-2746.46,0.00021917,2]
[372466355,1752654658248,-1808.19,0.00021917,2]
[372466356,1752654658257,-460.0,0.00021917,2]
[372466357,1752654658266,-460.0,0.00021917,2]
[372466358,1752654658276,-460.0,0.00021917,2]
[372466359,1752654658285,-453.98541708,0.00021917,2]
[372466360,1752654658296,-6298.76,0.00021917,2]
[372466361,1752654658305,-460.0,0.00021917,2]
[372466362,1752654658314,-460.0,0.00021917,2]
[372466363,1752654658324,-2445.32,0.00021917,2]
[372466364,1752654658333,-460.0,0.00021917,2]
[372466365,1752654658343,-572.65,0.00021917,2]
[372466366,1752654658352,-460.0,0.00021917,2]
[372466367,1752654658362,-1936.4,0.00021917,2]
[372466368,1752654658371,-460.0,0.00021917,2]
[372466369,1752654658380,-151.0,0.00021917,2]
[372466370,1752654658390,-460.0,0.00021917,2]
[372466371,1752654658399,-151.0,0.00021917,2]
[372466372,1752654658409,-151.0,0.00021917,2]
[372466373,1752654658418,-3342.95,0.00021917,2]
[372466374,1752654658427,-460.0,0.00021917,2]
[372466375,1752654658437,-151.0,0.00021917,2]
[372466376,1752654658446,-20901.43,0.00021917,2]
[372466377,1752654658460,-151.0,0.00021917,2]
[372466378,1752654658469,-151.0,0.00021917,2]
[372466379,1752654658479,-151.0,0.00021917,2]
[372466380,1752654658488,-1680.11,0.00021917,2]
[372466381,1752654658498,-217.440783,0.00021917,2]
[372466382,1752654658507,-1251.02,0.00021917,2]
[372466383,1752654658516,-5343.74,0.00021917,2]
[372466384,1752654658527,-460.0,0.00021917,2]
[372466385,1752654658536,-460.0,0.00021917,2]
[372466386,1752654658545,-460.0,0.00021917,2]
[372466387,1752654658554,-460.0,0.00021917,2]
[372466388,1752654658563,-460.0,0.00021917,2]
[372466389,1752654658573,-460.0,0.00021917,2]
[372466390,1752654658582,-1166.79,0.00021917,2]
[372466391,1752654658592,-553.64,0.00021917,2]
[372466392,1752654658601,-5844.36,0.00021917,2]
[372466393,1752654658611,-460.0,0.00021917,2]
[372466394,1752654658620,-4166.53,0.00021917,2]
[372466395,1752654658629,-460.0,0.00021917,2]
[372466396,1752654658639,-3713.09,0.00021917,2]
[372466397,1752654658649,-1510.25,0.00021917,2]
[372466398,1752654658658,-5930.55,0.00021917,2]
[372466399,1752654658667,-460.0,0.00021917,2]
[372466400,1752654658676,-460.0,0.00021917,2]
[372466401,1752654658686,-6996.98,0.00021917,2]
[372466402,1752654658695,-460.0,0.00021917,2]
[372466403,1752654658707,-1796.07,0.00021917,2]
[372466404,1752654658717,-460.0,0.00021917,2]
[372466405,1752654658726,-463.6925277,0.00021917,2]
[372466406,1752654658735,-460.0,0.00021917,2]
[372466407,1752654658745,-1695.38,0.00021917,2]
[372466408,1752654658754,-298.101703,0.00021917,2]
[372466409,1752654658763,-298.101703,0.00021917,2]
[372466410,1752654658773,-460.0,0.00021917,2]
[372466411,1752654658782,-460.0,0.00021917,2]
[372466412,1752654658791,-298.101703,0.00021917,2]
[372466413,1752654658801,-298.101703,0.00021917,2]
[372466414,1752654658810,-1774.16,0.00021917,2]
[372466415,1752654658819,-298.101703,0.00021917,2]
[372466416,1752654658829,-3055.72,0.00021917,2]
[372466417,1752654658839,-298.101703,0.00021917,2]
[372466418,1752654658848,-4785.31,0.00021917,2]
[372466419,1752654658858,-15984.89,0.00021917,2]
[372466420,1752654658867,-460.0,0.00021917,2]
[372466421,1752654658877,-298.101703,0.00021917,2]
[372466422,1752654658887,-298.101703,0.00021917,2]
[372466423,1752654658897,-460.0,0.00021917,2]
[372466424,1752654658906,-654.83,0.00021917,2]
[372466425,1752654658915,-298.101703,0.00021917,2]
[372466426,1752654658926,-463.60975588,0.00021917,2]
[372466427,1752654658935,-1135.13,0.00021917,2]
[372466428,1752654658945,-298.101703,0.00021917,2]
[372466429,1752654658956,-460.0,0.00021917,2]
[372466430,1752654658966,-1597.82,0.00021917,2]
[372466431,1752654658975,-298.101703,0.00021917,2]
[372466432,1752654658984,-298.101703,0.00021917,2]
[372466433,1752654658994,-701.04,0.00021917,2]
[372466434,1752654659003,-681.57,0.00021917,2]
[372466435,1752654659013,-298.101703,0.00021917,2]
[372466436,1752654659023,-400.807852,0.00021917,2]
[372466437,1752654659033,-298.101703,0.00021917,2]
[372466438,1752654659042,-623.95,0.00021917,2]
[372466439,1752654659052,-2234.49,0.00021917,2]
[372466440,1752654659062,-298.101703,0.00021917,2]
[372466441,1752654659201,-298.101703,0.00021917,2]
[372466442,1752654659211,-961.87,0.00021917,2]
[372466443,1752654659226,-298.101703,0.00021917,2]
[372466444,1752654659249,-4528.82,0.00021917,2]
[372466445,1752654659272,-298.101703,0.00021917,2]
[372466446,1752654659295,-526.21928872,0.00021917,2]
[372466447,1752654659317,-1115.99,0.00021917,2]
[372466448,1752654659548,-298.101703,0.00021917,2]
[372466449,1752654659564,-6939.87,0.00021917,2]
[372466450,1752654659575,-298.101694,0.00021917,2]
[372466451,1752654659584,-384.12531597,0.00021917,2]
[372466452,1752654659594,-471.97,0.00021917,2]
[372466453,1752654659604,-1204.94,0.00021917,2]
[372466454,1752654659613,-10200.86,0.00021917,2]
[372466455,1752654659623,-2825.75,0.00021917,2]
[372466456,1752654659632,-599.37,0.00021917,2]
[372466457,1752654659642,-460.0,0.00021917,2]
[372466458,1752654659652,-664.35,0.00021917,2]
[372466459,1752654659662,-460.0,0.00021917,2]
[372466460,1752654659672,-658.41,0.00021917,2]
[372466461,1752654659682,-151.0,0.00021917,2]
[372466462,1752654659692,-151.0,0.00021917,2]
[372466463,1752654659703,-151.0,0.00021917,2]
[372466464,1752654659712,-460.0,0.00021917,2]
[372466465,1752654659722,-151.0,0.00021917,2]
[372466466,1752654659732,-151.0,0.00021917,2]
[372466467,1752654659742,-151.0,0.00021917,2]
[372466468,1752654659753,-593.51,0.00021917,2]
[372466469,1752654659764,-151.0,0.00021917,2]
[372466470,1752654659774,-461.07437066,0.00021917,2]
[372466471,1752654659785,-3404.66,0.00021917,2]
[372466472,1752654659795,-1020.4,0.00021917,2]
[372466473,1752654659804,-804.88,0.00021917,2]
[372466474,1752654659814,-151.0,0.00021917,2]
[372466475,1752654659824,-182.834226,0.00021917,2]
[372466476,1752654659834,-1373.92,0.00021917,2]
[372466477,1752654659843,-460.0,0.00021917,2]
[372466478,1752654659853,-3509.26,0.00021917,2]
[372466479,1752654659863,-1717.68,0.00021917,2]
[372466480,1752654659872,-5685.75,0.00021917,2]
[372466481,1752654659881,-462.44819564,0.00021917,2]
[372466482,1752654659891,-460.0,0.00021917,2]
[372466483,1752654659900,-1842.34,0.00021917,2]
[372466484,1752654659910,-460.0,0.00021917,2]
[372466485,1752654659920,-460.0,0.00021917,2]
[372466486,1752654659929,-7615.45,0.00021917,2]
[372466487,1752654659939,-460.0,0.00021917,2]
[372466488,1752654659950,-1427.21,0.00021917,2]
[372466489,1752654659960,-4182.1,0.00021917,2]
[372466490,1752654659970,-1412.54,0.00021917,2]
[372466491,1752654659980,-460.0,0.00021917,2]
[372466492,1752654659989,-461.17828677,0.00021917,2]
[372466493,1752654659999,-3666.8,0.00021917,2]
[372466494,1752654660009,-460.0,0.00021917,2]
[372466495,1752654660018,-834.39,0.00021917,2]
[372466496,1752654660028,-1609.69,0.00021917,2]
[372466497,1752654660038,-460.0,0.00021917,2]
[372466498,1752654660048,-460.0,0.00021917,2]
[372466499,1752654660059,-460.0,0.00021917,2]
[372466500,1752654660069,-4734.3,0.00021917,2]
[372466501,1752654660080,-1955.95,0.00021917,2]
[372466502,1752654660091,-460.0,0.00021917,2]
[372466503,1752654660102,-151.0,0.00021917,2]
[372466504,1752654660112,-151.0,0.00021917,2]
[372466505,1752654660122,-460.0,0.00021917,2]
[372466506,1752654660132,-151.0,0.00021917,2]
[372466507,1752654660142,-806.73,0.00021917,2]
[372466508,1752654660152,-161.618399,0.00021917,2]
[372466509,1752654660162,-460.0,0.00021917,2]
[372466510,1752654660171,-460.0,0.00021917,2]
[372466511,1752654660181,-460.0,0.00021917,2]
[372466512,1752654660191,-7224.84,0.00021917,2]
[372466513,1752654660202,-460.0,0.00021917,2]
[372466514,1752654660212,-460.0,0.00021917,2]
[372466515,1752654660221,-1782.34,0.00021917,2]
[372466516,1752654660231,-2110.3,0.00021917,2]
[372466517,1752654660241,-460.0,0.00021917,2]
[372466518,1752654660251,-6862.55,0.00021917,2]
[372466519,1752654660261,-462.85104393,0.00021917,2]
[372466520,1752654660271,-460.0,0.00021917,2]
[372466521,1752654660281,-151.0,0.00021917,2]
[372466522,1752654660291,-460.0,0.00021917,2]
[372466523,1752654660301,-460.0,0.00021917,2]
[372466524,1752654660311,-520.95,0.00021917,2]
[372466525,1752654660321,-486.17,0.00021917,2]
[372466526,1752654660331,-460.0,0.00021917,2]
[372466527,1752654660341,-460.0,0.00021917,2]
[372466528,1752654660351,-2681.95,0.00021917,2]
[372466529,1752654660362,-460.0,0.00021917,2]
[372466530,1752654660374,-460.0,0.00021917,2]
[372466531,1752654660385,-9942.1,0.00021917,2]
[372466532,1752654660395,-151.0,0.00021917,2]
[372466533,1752654660405,-23234.41,0.00021917,2]
[372466534,1752654660415,-151.0,0.00021917,2]
[372466535,1752654660425,-151.0,0.00021917,2]
[372466536,1752654660434,-1470.48,0.00021917,2]
[372466537,1752654660444,-228.543456,0.00021917,2]
[372466538,1752654660457,-3990.39,0.00021917,2]
[372466539,1752654660467,-1470.48,0.00021917,2]
[372466540,1752654660477,-1470.48,0.00021917,2]
[372466541,1752654660487,-1470.48,0.00021917,2]
[372466542,1752654660498,-1470.48,0.00021917,2]
[372466543,1752654660508,-1470.48,0.00021917,2]
[372466544,1752654660518,-1470.48,0.00021917,2]
[372466545,1752654660530,-478.32,0.00021917,2]
[372466546,1752654660540,-460.0,0.00021917,2]
[372466547,1752654660550,-1470.48,0.00021917,2]
[372466548,1752654660560,-10317.02,0.00021917,2]
[372466549,1752654660570,-1470.48,0.00021917,2]
[372466550,1752654660580,-1470.48,0.00021917,2]
[372466551,1752654660590,-1470.48,0.00021917,2]
[372466552,1752654660600,-460.0,0.00021917,2]
[372466553,1752654660610,-1470.48,0.00021917,2]
[372466554,1752654660620,-723.23,0.00021917,2]
[372466555,1752654660630,-1470.48,0.00021917,2]
[372466556,1752654660639,-1470.48,0.00021917,2]
[372466557,1752654660649,-1470.48,0.00021917,2]
[372466558,1752654660660,-2754.34,0.00021917,2]
[372466559,1752654660671,-460.0,0.00021917,2]
[372466560,1752654660680,-6466.79,0.00021917,2]
[372466561,1752654660691,-460.0,0.00021917,2]
[372466562,1752654660704,-388.70770517,0.00021917,2]
[372466563,1752654660713,-1536.89,0.00021917,2]
[372466564,1752654660723,-1423.42,0.00021917,2]
[372466565,1752654660733,-141471.33,0.00021917,2]
[372466566,1752654660745,-460.0,0.00021917,2]
[372466567,1752654660755,-1461.22,0.00021917,2]
[372466568,1752654660766,-460.0,0.00021917,2]
[372466569,1752654660777,-563.7,0.00021917,2]
[372466570,1752654660788,-2091.94,0.00021917,2]
[372466571,1752654660799,-2854.38,0.00021917,2]
[372466572,1752654660809,-460.0,0.00021917,2]
[372466573,1752654660819,-4930.79,0.00021917,2]
[372466574,1752654660828,-460.0,0.00021917,2]
[372466575,1752654660839,-460.0,0.00021917,2]
[372466576,1752654660850,-555.56,0.00021917,2]
[372466577,1752654660860,-1940.88,0.00021917,2]
[372466578,1752654660870,-460.0,0.00021917,2]
[372466579,1752654660881,-460.0,0.00021917,2]
[372466580,1752654660891,-1181.03,0.00021917,2]
[372466581,1752654660902,-1832.6,0.00021917,2]
[372466582,1752654660912,-14607.99,0.00021917,2]
[372466583,1752654660921,-3367.08,0.00021917,2]
[372466584,1752654660932,-469.47,0.00021917,2]
[372466585,1752654660943,-3941.36,0.00021917,2]
[372466586,1752654660953,-460.0,0.00021917,2]
[372466587,1752654660963,-476.42212776,0.00021917,2]
[372466588,1752654661180,-460.0,0.00021917,2]
[372466589,1752654661192,-462.29873041,0.00021917,2]
[372466590,1752654661202,-4231.95,0.00021917,2]
[372466591,1752654661212,-1536.35,0.00021917,2]
[372466592,1752654661222,-460.0,0.00021917,2]
[372466593,1752654661231,-2859.25,0.00021917,2]
[372466594,1752654661241,-1536.35,0.00021917,2]
[372466595,1752654661251,-1536.35,0.00021917,2]
[372466596,1752654661260,-1536.35,0.00021917,2]
[372466597,1752654661270,-203.969566,0.00021917,2]
[372466598,1752654661280,-1536.35,0.00021917,2]
[372466599,1752654661290,-460.0,0.00021917,2]
[372466600,1752654661300,-3362.76,0.00021917,2]
[372466601,1752654661309,-1536.35,0.00021917,2]
[372466602,1752654661318,-1536.35,0.00021917,2]
[372466603,1752654661328,-460.0,0.00021917,2]
[372466604,1752654661337,-850.02,0.00021917,2]
[372466605,1752654661347,-877.05,0.00021917,2]
[372466606,1752654661357,-877.05,0.00021917,2]
[372466607,1752654661367,-460.0,0.00021917,2]
[372466608,1752654661377,-877.05,0.00021917,2]
[372466609,1752654661387,-473.12,0.00021917,2]
[372466610,1752654661396,-877.05,0.00021917,2]
[372466611,1752654661406,-491.53818594,0.00021917,2]
[372466612,1752654661416,-877.05,0.00021917,2]
[372466613,1752654661426,-877.05,0.00021917,2]
[372466614,1752654661435,-1536.35,0.00021917,2]
[372466615,1752654661445,-877.05,0.00021917,2]
[372466616,1752654661460,-1536.35,0.00021917,2]
[372466617,1752654661470,-877.05,0.00021917,2]
[372466618,1752654661479,-1536.35,0.00021917,2]
[372466619,1752654661489,-1536.35,0.00021917,2]
[372466620,1752654661501,-877.05,0.00021917,2]
[372466621,1752654661511,-1536.35,0.00021917,2]
[372466622,1752654661520,-877.05,0.00021917,2]
[372466623,1752654661531,-1536.35,0.00021917,2]
[372466624,1752654661541,-877.05,0.00021917,2]
[372466625,1752654661550,-1536.35,0.00021917,2]
[372466626,1752654661560,-151.0,0.00021917,2]
[372466627,1752654661570,-877.05,0.00021917,2]
[372466628,1752654661581,-151.0,0.00021917,2]
[372466629,1752654661591,-151.0,0.00021917,2]
[372466630,1752654661600,-460.0,0.00021917,2]
[372466631,1752654661611,-151.0,0.00021917,2]
[372466632,1752654661620,-877.05,0.00021917,2]
[372466633,1752654661630,-1664.3,0.00021917,2]
[372466634,1752654661639,-5488.37,0.00021917,2]
[372466635,1752654661649,-220.382076,0.00021917,2]
[372466636,1752654661659,-877.05,0.00021917,2]
[372466637,1752654661669,-2740.68,0.00021917,2]
[372466638,1752654661678,-2819.78,0.00021917,2]
[372466639,1752654661688,-33996.02,0.00021917,2]
[372466640,1752654661698,-220.02074381,0.00021917,2]
[372466641,1752654661710,-10427.26,0.00021917,2]
[372466642,1752654661720,-460.98407075,0.00021917,2]
[372466643,1752654661729,-464.28123554,0.00021917,2]
[372466644,1752654661739,-460.0,0.00021917,2]
[372466645,1752654661748,-5632.53,0.00021917,2]
[372466646,1752654661758,-460.0,0.00021917,2]
[372466647,1752654661769,-460.0,0.00021917,2]
[372466648,1752654661780,-2448.94,0.00021917,2]
[372466649,1752654661790,-460.0,0.00021917,2]
[372466650,1752654661799,-151.0,0.00021917,2]
[372466651,1752654661812,-2700.17,0.00021917,2]
[372466652,1752654661822,-1776.457186,0.00021917,2]
[372466653,1752654661831,-3309.27,0.00021917,2]
[372466654,1752654661841,-1776.457186,0.00021917,2]
[372466655,1752654661850,-151.0,0.00021917,2]
[372466656,1752654661860,-1776.457186,0.00021917,2]
[372466657,1752654661870,-152.604864,0.00021917,2]
[372466658,1752654661880,-1776.457186,0.00021917,2]
[372466659,1752654661891,-1776.457186,0.00021917,2]
[372466660,1752654662318,-460.0,0.00021917,2]
[372466661,1752654662329,-1776.457186,0.00021917,2]
[372466662,1752654662338,-460.0,0.00021917,2]
[372466663,1752654662348,-1776.457186,0.00021917,2]
[372466664,1752654662368,-853.73,0.00021917,2]
[372466665,1752654662378,-2122.75,0.00021917,2]
[372466666,1752654662389,-3293.2,0.00021917,2]
[372466667,1752654662399,-1776.457186,0.00021917,2]
[372466668,1752654662409,-1776.457186,0.00021917,2]
[372466669,1752654662420,-460.0,0.00021917,2]
[372466670,1752654662431,-1776.457186,0.00021917,2]
[372466671,1752654662441,-8314.15,0.00021917,2]
[372466672,1752654662454,-1776.457186,0.00021917,2]
[372466673,1752654662463,-1776.457186,0.00021917,2]
[372466674,1752654662474,-1776.457186,0.00021917,2]
[372466675,1752654662484,-151.0,0.00021917,2]
[372466676,1752654662494,-1776.457186,0.00021917,2]
[372466677,1752654662503,-151.0,0.00021917,2]
[372466678,1752654662513,-1776.457186,0.00021917,2]
[372466679,1752654662523,-151.0,0.00021917,2]
[372466680,1752654662534,-460.0,0.00021917,2]
[372466681,1752654662544,-1776.457186,0.00021917,2]
[372466682,1752654662554,-151.0,0.00021917,2]
[372466683,1752654662563,-741.63,0.00021917,2]
[372466684,1752654662573,-3327.42,0.00021917,2]
[372466685,1752654662583,-460.0,0.00021917,2]
[372466686,1752654662592,-1776.457186,0.00021917,2]
[372466687,1752654662602,-1776.457186,0.00021917,2]
[372466688,1752654662612,-151.0,0.00021917,2]
[372466689,1752654662622,-3400.85,0.00021917,2]
[372466690,1752654662631,-1776.457186,0.00021917,2]
[372466691,1752654662641,-151.0,0.00021917,2]
[372466692,1752654662651,-1776.457188,0.00021917,2]
[372466693,1752654662660,-151.0,0.00021917,2]
[372466694,1752654662670,-460.0,0.00021917,2]
[372466695,1752654662680,-151.0,0.00021917,2]
[372466696,1752654662689,-151.0,0.00021917,2]
[372466697,1752654662699,-1496.9,0.00021917,2]
[372466698,1752654662710,-151.0,0.00021917,2]
[372466699,1752654662720,-151.0,0.00021917,2]
[372466700,1752654662730,-460.0,0.00021917,2]
[372466701,1752654662740,-460.0,0.00021917,2]
[372466702,1752654662750,-151.0,0.00021917,2]
[372466703,1752654662760,-1155.42,0.00021917,2]
[372466704,1752654662770,-460.0,0.00021917,2]
[372466705,1752654662780,-7508.63,0.00021917,2]
[372466706,1752654662789,-3995.21,0.00021917,2]
[372466707,1752654662799,-151.0,0.00021917,2]
[372466708,1752654662808,-460.0,0.00021917,2]
[372466709,1752654662818,-151.0,0.00021917,2]
[372466710,1752654662827,-151.0,0.00021917,2]
[372466711,1752654662836,-157.681486,0.00021917,2]
[372466712,1752654662847,-5939.0,0.00021917,2]
[372466713,1752654662857,-487.5,0.00021917,2]
[372466714,1752654662867,-151.0,0.00021917,2]
[372466715,1752654662879,-5253.65,0.00021917,2]
[372466716,1752654662890,-151.0,0.00021917,2]
[372466717,1752654662900,-2693.71,0.00021917,2]
[372466718,1752654662911,-6164.6,0.00021917,2]
[372466719,1752654662921,-460.0,0.00021917,2]
[372466720,1752654662931,-460.0,0.00021917,2]
[372466721,1752654662941,-239.887276,0.00021917,2]
[372466722,1752654662951,-2341.69,0.00021917,2]
[372466723,1752654662961,-460.0,0.00021917,2]
[372466724,1752654662971,-461.47181183,0.00021917,2]
[372466725,1752654662981,-820.51,0.00021917,2]
[372466726,1752654662993,-1800.32,0.00021917,2]
[372466727,1752654663005,-7291.58,0.00021917,2]
[372466728,1752654663015,-460.77137677,0.00021917,2]
[372466729,1752654663025,-465.04302869,0.00021917,2]
[372466730,1752654663035,-460.0,0.00021917,2]
[372466731,1752654663045,-742.19,0.00021917,2]
[372466732,1752654663055,-460.0,0.00021917,2]
[372466733,1752654663066,-685.4,0.00021917,2]
[372466734,1752654663076,-460.0,0.00021917,2]
[372466735,1752654663086,-460.0,0.00021917,2]
[372466736,1752654663097,-460.0,0.00021917,2]
[372466737,1752654663107,-460.0,0.00021917,2]
[372466738,1752654663117,-460.0,0.00021917,2]
[372466739,1752654663127,-460.0,0.00021917,2]
[372466740,1752654663138,-779.01,0.00021917,2]
[372466741,1752654663148,-460.60197169,0.00021917,2]
[372466742,1752654663157,-1737.96,0.00021917,2]
[372466743,1752654663167,-460.0,0.00021917,2]
[372466744,1752654663178,-3662.75,0.00021917,2]
[372466745,1752654663188,-460.0,0.00021917,2]
[372466746,1752654663198,-460.0,0.00021917,2]
[372466747,1752654663210,-3366.61,0.00021917,2]
[372466748,1752654663220,-1544.24,0.00021917,2]
[372466749,1752654663230,-461.23,0.00021917,2]
[372466750,1752654663240,-1069.29,0.00021917,2]
[372466751,1752654663250,-3477.97,0.00021917,2]
[372466752,1752654663259,-460.0,0.00021917,2]
[372466753,1752654663269,-460.0,0.00021917,2]
[372466754,1752654663279,-3803.61,0.00021917,2]
[372466755,1752654663289,-460.0,0.00021917,2]
[372466756,1752654663299,-14412.52,0.00021917,2]
[372466757,1752654663308,-151.0,0.00021917,2]
[372466758,1752654663318,-460.0,0.00021917,2]
[372466759,1752654663327,-151.0,0.00021917,2]
[372466760,1752654663337,-291.567719,0.00021917,2]
[372466761,1752654663347,-460.0,0.00021917,2]
[372466762,1752654663356,-460.0,0.00021917,2]
[372466763,1752654663366,-460.0,0.00021917,2]
[372466764,1752654663376,-2169.47,0.00021917,2]
[372466765,1752654663386,-461.47069613,0.00021917,2]
[372466766,1752654663396,-5953.44,0.00021917,2]
[372466767,1752654663405,-500.0,0.00021917,2]
[372466768,1752654663415,-434.33362683,0.00021917,2]
[372466769,1752654663425,-460.0,0.00021917,2]
[372466770,1752654663435,-832.35,0.00021917,2]
[372466771,1752654663445,-527.88,0.00021917,2]
[372466772,1752654663459,-373.79350706,0.00021917,2]
[372466773,1752654663469,-1113.01,0.00021917,2]
[372466774,1752654663479,-8212.52,0.00021917,2]
[372466775,1752654663489,-2793.24,0.00021917,2]
[372466776,1752654663500,-507.4,0.00021917,2]
[372466777,1752654663510,-460.0,0.00021917,2]
[372466778,1752654663520,-6518.08,0.00021917,2]